bitfinex-derivatives/quotes_ETHF0:USTF0_20250807
["timestamp","ask_amount","ask_price","bid_price","bid_amount"]
[1754576232977,1.3289,3838.0,3837.9,0.9206]
[1754576233182,0.4849,3838.0,3837.9,0.9206]
[1754576233377,0.0798,3838.0,3837.9,0.9206]
[1754576235078,0.4849,3838.0,3837.9,0.9206]
[1754576235278,1.3289,3838.0,3837.9,0.9206]
[1754576235778,0.0798,3838.0,3837.9,0.9206]
[1754576237287,1e-05,3838.0,3837.9,0.9206]
[1754576237481,0.3895,3838.8,3837.9,0.3996]
[1754576237687,1.2491,3838.7,3838.6,0.52091]
[1754576238677,1.2491,3838.7,3837.8,1.30253]
[1754576238678,1.2491,3839.1,3837.8,1.30253]
[1754576238989,0.844,3839.0,3837.7,1.30257]
[1754576239286,1.2491,3838.6,3837.7,1.30257]
[1754576239482,1.77003,3838.5,3838.3,0.52094]
[1754576239679,1.2491,3838.6,3838.5,0.52092]
[1754576240883,0.4051,3838.6,3838.5,0.92052]
[1754576241791,1.2491,3839.0,3838.9,0.92047]
[1754576241983,0.4051,3839.0,3838.9,0.92047]
[1754576242186,0.4051,3839.0,3838.9,0.52087]
[1754576242487,1.2491,3839.0,3838.9,0.52087]
[1754576243489,0.4051,3839.0,3838.9,0.92047]
[1754576244186,1.2491,3839.5,3839.4,0.9204]
[1754576244590,1.2491,3839.5,3839.4,0.5208]
[1754576244987,1.2491,3840.0,3839.9,0.52073]
[1754576245194,0.4051,3840.0,3839.9,0.92033]
[1754576245695,1.2491,3840.0,3839.9,0.92033]
[1754576246192,0.7946,3840.0,3839.9,0.92033]
[1754576246392,0.4051,3840.0,3839.9,0.92033]
[1754576246983,0.4051,3840.0,3839.9,0.52073]
[1754576247195,1.39853122,3840.7,3839.8,0.52074]
[1754576247196,0.3895,3839.9,3839.8,0.52074]
[1754576247394,1.2491,3840.2,3839.6,0.52076]
[1754576247584,1.2491,3839.8,3839.6,0.52076]
[1754576247892,1.2491,3839.7,3839.6,0.52076]
[1754576248397,1.2491,3839.6,3839.5,0.52078]
[1754576248590,1.95134477,3839.6,3839.0,1.30214]
[1754576248796,0.4051,3839.4,3838.8,1.30221]
[1754576249095,1.10734477,3839.4,3838.8,1.30221]
[1754576249300,1.2422,3839.1,3839.0,0.52085]
[1754576249596,0.8253,3839.1,3838.7,0.3996]
[1754576249791,0.52082,3839.3,3839.1,0.52084]
[1754576250096,0.70224477,3839.2,3839.1,0.52084]
[1754576250296,0.70224477,3839.7,3839.6,0.52077]
[1754576250495,1.94444477,3839.7,3839.6,0.93567]
[1754576251096,1.94444477,3839.7,3839.6,1.93197]
[1754576251397,1.10384477,3839.7,3839.6,1.93197]
[1754576251690,0.4016,3839.7,3839.6,1.93197]
[1754576252193,1.94444477,3839.7,3839.6,1.93197]
[1754576252493,1.2422,3839.7,3839.6,1.93197]
[1754576253296,0.4016,3839.7,3839.6,1.93197]
[1754576253495,0.703318,3839.8,3839.7,0.93566]
[1754576253685,1.543918,3840.3,3840.2,0.52069]
[1754576254090,1.528618,3840.3,3840.2,0.93559]
[1754576254292,1.945518,3840.3,3840.2,0.93559]
[1754576254892,1.104918,3840.3,3840.2,0.93559]
[1754576255198,0.703318,3840.3,3840.2,0.94079]
[1754576255588,1.521818,3840.3,3840.2,0.93559]
[1754576255791,1.104918,3840.3,3840.2,0.93559]
[1754576255997,0.703318,3840.3,3840.2,0.94079]
[1754576256192,0.703318,3840.5,3840.4,0.52066]
[1754576256401,1.104918,3840.5,3840.4,0.93556]
[1754576256699,0.703318,3840.5,3840.4,0.93556]
[1754576256892,1.945518,3840.5,3840.4,0.52066]
[1754576257592,1.945518,3840.5,3840.4,0.93556]
[1754576258293,1.2422,3840.5,3840.4,0.93556]
[1754576258689,0.4016,3840.5,3840.4,0.93556]
[1754576258893,1.104918,3840.8,3840.7,0.52062]
[1754576259093,1.945518,3840.8,3840.7,0.52062]
[1754576259295,1.2422,3840.8,3840.7,0.52062]
[1754576259494,1.2422,3840.7,3840.2,0.4149]
[1754576259695,0.703318,3840.6,3840.2,0.4149]
[1754576259896,1.2422,3840.4,3840.3,0.52068]
[1754576260289,0.4016,3840.4,3840.3,0.52068]
[1754576260587,1.2422,3840.9,3840.8,0.52061]
[1754576260792,1.94364556,3840.9,3840.8,0.52061]
[1754576260995,2.78574556,3840.9,3840.8,0.52061]
[1754576261295,2.0843,3840.3,3840.2,0.52069]
[1754576262192,2.78574556,3840.3,3840.2,0.52069]
[1754576262394,2.0843,3839.7,3839.6,1.51707]
[1754576262992,1.2422,3839.7,3839.6,1.51707]
[1754576263594,1.2422,3839.7,3838.4,2.60989]
[1754576263595,1.3018,3840.0,3839.2,0.52082]
[1754576263796,1.2422,3839.3,3839.2,0.52082]
[1754576264196,0.5207,3840.2,3840.0,0.52071]
[1754576264398,0.8406,3840.1,3840.0,0.52071]
[1754576264702,1.2422,3840.1,3840.0,0.52071]
[1754576265303,1.94364556,3840.1,3840.0,0.52071]
[1754576265496,1.2422,3840.1,3840.0,0.52071]
[1754576265996,1.94364556,3840.1,3840.0,0.52071]
[1754576266198,2.46436556,3840.1,3839.8,0.52074]
[1754576266394,0.4016,3839.9,3839.2,0.4212]
[1754576266594,0.52077,3839.7,3838.7,0.4212]
[1754576266800,0.4016,3839.5,3839.4,0.52079]
[1754576267103,1.94364556,3839.5,3839.4,0.52079]
[1754576267299,1.2422,3839.5,3839.4,0.52079]
[1754576267604,1.94364556,3839.5,3839.4,0.52079]
[1754576267900,1.94364556,3839.5,3839.1,1.396]
[1754576267901,0.8406,3839.4,3839.2,0.52083]
[1754576268097,1.94364556,3839.3,3839.2,0.52083]
[1754576268300,1.2422,3839.3,3839.2,0.52083]
[1754576268695,1.94364556,3839.3,3839.2,0.52083]
[1754576269003,0.70144556,3839.8,3839.6,0.52077]
[1754576269198,0.70144556,3839.7,3839.6,0.52077]
[1754576269598,1.94364556,3839.7,3839.6,0.52077]
[1754576269901,1.2422,3839.5,3839.1,1.396]
[1754576270102,0.70144556,3839.4,3839.2,0.52083]
[1754576270302,1.94364556,3839.3,3839.2,0.52083]
[1754576270803,1.94364556,3839.3,3839.2,0.94203]
[1754576271201,0.70144556,3839.3,3839.2,1.77723]
[1754576271401,0.4016,3839.6,3839.4,0.5208]
[1754576271598,0.70377323,3839.5,3839.4,1.7772]
[1754576272410,0.70377323,3840.0,3839.9,1.77713]
[1754576272904,1.94597323,3840.0,3839.9,0.52073]
[1754576273406,1.94597323,3840.4,3840.3,1.35678]
[1754576273803,1.94597323,3840.4,3840.3,0.52068]
[1754576274006,2.17546158,3840.4,3840.3,0.52068]
[1754576274203,1.94597323,3840.4,3840.3,0.52068]
[1754576274598,1.94597323,3840.4,3839.7,0.8361]
[1754576274599,1.2422,3840.3,3839.7,0.8361]
[1754576274802,1.2422,3840.1,3840.0,0.52072]
[1754576275104,1.94597323,3840.1,3839.9,0.52073]
[1754576275311,1.22446323,3840.3,3840.1,0.52071]
[1754576275606,0.8406,3840.0,3839.6,1.1998]
[1754576275803,1.2422,3840.0,3839.6,1.1998]
[1754576276005,1.12768707,3839.9,3839.8,0.52075]
[1754576276206,1.2422,3839.9,3839.8,0.52075]
[1754576276511,1.94618707,3839.9,3839.8,0.52075]
[1754576277406,1.2422,3839.9,3839.8,0.52075]
[1754576277906,1.94618707,3839.9,3839.8,0.52075]
[1754576278110,1.2422,3839.9,3839.8,0.52075]
[1754576279013,1.2422,3839.9,3839.8,1.35685]
[1754576279308,0.52076,3839.8,3839.6,1.1998]
[1754576279507,0.52077,3839.6,3839.2,0.52082]
[1754576279710,0.70398707,3840.1,3838.7,0.3888]
[1754576279913,0.4441,3839.9,3839.5,0.52077]
[1754576280115,1.14808707,3839.9,3839.6,0.52076]
[1754576280415,1.14808707,3839.9,3839.4,0.52079]
[1754576280416,1.77767,3839.7,3839.4,0.52079]
[1754576280719,1.2569,3839.5,3839.4,0.52079]
[1754576280909,0.8468,3839.5,3839.4,0.52079]
[1754576281110,1.2569,3839.5,3839.4,0.52079]
[1754576281313,1.2569,3839.5,3839.3,0.52081]
[1754576281514,0.52075,3839.8,3839.5,0.52077]
[1754576281708,0.52078,3839.6,3839.3,0.52081]
[1754576281914,0.52081,3839.4,3839.1,0.52083]
[1754576282112,0.8542,3838.7,3838.6,0.96631]
[1754576282309,0.52079,3839.5,3839.2,0.52082]
[1754576282510,0.5208,3839.5,3839.2,0.52081]
[1754576282814,0.4027,3839.1,3839.0,0.52085]
[1754576283009,1.2569,3839.1,3839.0,0.52085]
[1754576284012,0.52079,3839.5,3838.9,0.4454]
[1754576284213,0.4441,3839.3,3839.0,0.4454]
[1754576284413,0.4441,3839.2,3839.0,0.4454]
[1754576284618,1.2569,3839.0,3838.9,0.52086]
[1754576284811,1.2569,3839.0,3838.7,1.0749]
[1754576285010,0.8128,3839.1,3838.7,1.5203]
[1754576285213,1.2569,3838.9,3838.7,2.04119]
[1754576285416,0.4027,3838.9,3838.8,0.52087]
[1754576285721,0.4027,3838.9,3838.8,0.96627]
[1754576285908,2.0909,3838.9,3838.7,1.0749]
[1754576286115,2.61178,3838.8,3838.7,1.0749]
[1754576286610,2.0909,3838.1,3838.0,1.53149]
[1754576286915,2.0909,3838.1,3838.0,2.20409]
[1754576287213,0.4027,3837.9,3837.8,0.90982]
[1754576287420,0.8128,3837.9,3837.8,1.35522]
[1754576287617,0.8128,3837.9,3837.8,1.76792]
[1754576288121,0.4027,3838.3,3838.2,0.52096]
[1754576288316,0.8542,3838.3,3838.2,1.35516]
[1754576288617,1.2569,3838.3,3838.2,0.8342]
[1754576289409,1.2569,3838.3,3838.2,0.4454]
[1754576289812,1.2569,3838.3,3838.2,0.8342]
[1754576290021,1.2569,3838.3,3838.2,0.4454]
[1754576290507,1.2569,3838.3,3838.1,0.52097]
[1754576290713,0.52093,3838.5,3838.3,0.52094]
[1754576290914,0.5679,3838.4,3838.3,2.20404]
[1754576291114,0.564,3838.7,3838.6,1.9396]
[1754576291318,2.0909,3838.7,3838.6,2.204]
[1754576291719,2.0909,3838.7,3838.6,1.086]
[1754576291918,2.0909,3838.7,3838.6,1.8152]
[1754576292112,2.0909,3838.7,3838.6,2.204]
[1754576292309,0.6801,3838.7,3838.6,2.6167]
[1754576292511,1.012,3839.0,3838.9,1.36977]
[1754576292714,2.0909,3839.0,3838.9,2.20397]
[1754576293415,1.6468,3839.0,3838.9,2.20397]
[1754576293724,2.0909,3839.0,3838.9,2.20397]
[1754576294913,0.52082,3839.3,3838.9,0.8342]
[1754576295112,2.0909,3839.2,3839.0,0.52085]
[1754576295414,1.6468,3839.1,3839.0,1.75855]
[1754576295916,0.9235509,3839.5,3839.0,1.75855]
[1754576295917,0.70194919,3840.0,3839.0,0.52085]
[1754576296121,1.6882,3839.1,3838.4,0.4454]
[1754576296323,2.0909,3839.0,3838.9,0.52086]
[1754576297121,2.0909,3839.0,3838.9,0.78526]
[1754576297424,2.0909,3839.0,3838.9,2.20396]
[1754576298420,0.9235509,3839.8,3839.2,0.5651]
[1754576298421,1.76491,3839.3,3839.2,0.5651]
[1754576298627,0.2979,3839.1,3839.0,0.4454]
[1754576298923,2.0909,3839.1,3839.0,2.20395]
[1754576299325,2.0909,3839.1,3839.0,1.81515]
[1754576299524,2.0909,3839.0,3838.9,0.52086]
[1754576300027,2.0909,3839.0,3838.9,2.20396]
[1754576300323,1.6468,3839.0,3838.9,2.20396]
[1754576300520,1.14604919,3839.4,3838.9,2.0958]
[1754576300723,2.0909,3839.4,3838.9,1.2469]
[1754576300916,1.6468,3839.0,3838.9,1.53137]
[1754576301225,0.4101,3839.3,3839.2,1.36973]
[1754576301419,2.0909,3839.3,3839.2,1.81513]
[1754576301626,2.0909,3839.3,3839.2,0.52083]
[1754576302424,2.0909,3839.3,3839.2,2.20393]
[1754576305336,2.18133504,3839.7,3839.6,1.81507]
[1754576305537,2.0909,3839.7,3839.6,2.20387]
[1754576305738,0.92443504,3839.8,3839.6,2.20387]
[1754576305938,2.0909,3840.1,3840.0,1.49402]
[1754576306433,2.0909,3840.1,3840.0,2.20382]
[1754576306640,1.6468,3840.1,3840.0,2.20382]
[1754576306839,1.94669938,3840.4,3840.3,2.61648]
[1754576307038,2.0909,3840.4,3840.3,2.20378]
[1754576307436,2.0909,3840.4,3840.3,0.52068]
[1754576308339,2.0909,3840.4,3840.3,2.20378]
[1754576309541,2.0769,3840.4,3840.3,2.20378]
[1754576309742,1.6328,3840.4,3840.3,2.60168]
[1754576310145,2.0492,3840.7,3840.6,2.14084]
[1754576310344,0.3812,3840.7,3840.6,2.53874]
[1754576310538,1.0,3841.0,3840.9,2.5387]
[1754576313249,3.0492,3841.0,3840.9,0.8128]
[1754576314047,1.0,3841.0,3840.9,2.0181]
[1754576315050,3.0492,3841.0,3840.9,1.6202]
[1754576315446,3.0492,3841.0,3840.8,0.5206]
[1754576315447,0.8332,3840.9,3840.6,0.4214]
[1754576315649,0.8157,3840.7,3840.3,0.52068]
[1754576315844,0.8157,3840.4,3840.3,0.4214]
[1754576316050,2.0492,3840.4,3840.3,0.7022]
[1754576316348,2.0492,3840.4,3840.3,1.6202]
[1754576316548,2.0492,3840.4,3840.3,1.2342]
[1754576316846,2.0492,3840.3,3840.1,0.5207]
[1754576317039,2.0492,3840.2,3840.1,0.7768]
[1754576317243,2.0492,3840.2,3840.1,0.5207]
[1754576318249,2.0492,3840.2,3840.1,1.7549]
[1754576318449,2.0492,3840.2,3840.1,2.1409]
[1754576318848,2.11310975,3840.2,3840.1,1.7549]
[1754576319054,2.11310975,3840.2,3840.1,0.5207]
[1754576319451,2.0492,3840.1,3839.9,0.52072]
[1754576319649,0.06390975,3840.2,3839.9,0.52072]
[1754576319650,1.2677,3840.0,3839.9,0.52072]
[1754576319949,2.11310975,3840.0,3839.9,0.52072]
[1754576320745,1.3915,3839.9,3838.9,39.20805]
[1754576320951,2.0492,3839.7,3839.6,0.45685025]
[1754576322655,2.0492,3839.3,3839.2,0.52083]
[1754576322957,2.0492,3839.3,3838.9,0.4214]
[1754576322958,2.0492,3839.1,3838.9,0.52086]
[1754576323357,2.0492,3839.1,3838.6,0.5209]
[1754576323550,0.8157,3838.3,3838.1,0.52097]
[1754576323749,0.8157,3837.6,3836.8,0.3979]
[1754576323952,1.9456,3837.5,3837.4,0.2759]
[1754576324155,1.9456,3837.0,3836.9,2.14134]
[1754576325964,1.5972,3837.0,3836.9,2.14134]
[1754576326165,1.9456,3837.0,3836.9,2.14134]
[1754576326358,1.9456,3837.0,3836.9,1.75534]
[1754576326563,1.9456,3837.0,3836.9,1.2342]
[1754576327164,1.9456,3837.0,3836.9,1.6202]
[1754576327359,1.9456,3837.0,3836.9,0.9534]
[1754576327864,0.8157,3837.0,3836.6,2.04478]
[1754576328067,1.9456,3836.7,3836.6,1.7995]
[1754576328460,1.9456,3836.7,3836.6,2.7224]
[1754576329357,0.70088218,3838.2,3836.6,3.21794]
[1754576329557,0.8157,3837.2,3837.1,1.05311]
[1754576329759,1.9456,3837.2,3837.1,0.532]
[1754576329958,1.1299,3837.1,3836.9,0.52113]
[1754576330162,1.9456,3837.0,3836.9,0.52113]
[1754576330659,1.9456,3837.0,3836.9,0.79703]
[1754576330860,1.9456,3837.0,3836.9,1.75533]
[1754576331067,1.9456,3837.0,3836.9,2.14133]
[1754576331267,0.9122,3837.0,3836.9,2.14133]
[1754576331473,0.6577,3837.0,3836.9,2.53923]
[1754576332367,0.3812,3837.0,3836.9,2.53923]
[1754576332871,1.9456,3837.0,3836.9,2.14133]
[1754576333066,1.9456,3837.0,3836.9,0.9781]
[1754576333258,1.9456,3837.0,3836.9,0.2759]
[1754576334170,1.9456,3837.0,3836.9,0.9534]
[1754576334471,2.30456661,3840.1,3836.6,1.1022]
[1754576334472,1.2797,3837.4,3837.3,1.33388]
[1754576334668,0.9313,3837.4,3837.3,2.14128]
[1754576335172,1.3125,3837.4,3837.3,2.14128]
[1754576335374,1.9456,3837.4,3837.3,0.2759]
[1754576335574,1.9456,3837.3,3837.2,0.94249]
[1754576335768,1.9456,3837.3,3837.2,0.52109]
[1754576335964,1.9456,3837.3,3837.2,2.14129]
[1754576336563,1.2908,3837.1,3837.0,0.79702]
[1754576336767,1.9456,3837.1,3837.0,0.52112]
[1754576336969,1.9456,3837.0,3836.9,0.79703]
[1754576337275,1.9456,3837.0,3836.9,1.21843]
[1754576337571,1.9456,3837.0,3836.9,2.14133]
[1754576338670,0.6577,3837.0,3836.9,2.14133]
[1754576338975,1.9456,3837.4,3837.3,1.6202]
[1754576339176,1.9456,3837.4,3837.3,0.2759]
[1754576339473,1.1421,3837.3,3837.0,0.7908]
[1754576339677,1.9614,3837.1,3837.0,1.86093]
[1754576339879,0.8193,3837.1,3836.9,0.52114]
[1754576340078,1.5737,3837.0,3836.9,0.52114]
[1754576340273,1.6119,3836.7,3836.6,3.23958]
[1754576340674,1.6119,3836.7,3836.6,2.13738]
[1754576340675,1.9614,3836.7,3836.6,2.13738]
[1754576340969,0.8895,3837.3,3837.2,0.549]
[1754576341175,1.5737,3837.3,3837.2,0.549]
[1754576341773,1.9614,3837.3,3837.2,0.549]
[1754576341968,1.72809,3837.3,3837.0,0.4114]
[1754576342179,1.3085,3837.0,3836.9,0.52113]
[1754576342378,1.9614,3837.0,3836.9,0.52113]
[1754576342575,1.9614,3837.0,3836.9,1.48153]
[1754576342777,1.5737,3837.5,3837.4,2.13727]
[1754576343275,0.667,3837.5,3837.4,2.13727]
[1754576343473,1.9614,3837.5,3837.3,0.52108]
[1754576343674,1.9614,3837.4,3837.3,0.52108]
[1754576343878,1.9614,3837.4,3837.3,2.13728]
[1754576345177,0.2793,3837.8,3837.7,1.75783]
[1754576345470,0.2793,3837.8,3837.7,2.13723]
[1754576345676,1.9614,3837.8,3837.7,2.13723]
[1754576345872,1.9614,3837.8,3837.7,1.48143]
[1754576346076,1.9614,3837.8,3837.7,0.81083]
[1754576346584,0.521,3838.0,3837.1,1.68978]
[1754576346585,1.9614,3837.2,3837.1,0.81091]
[1754576347481,1.9614,3837.2,3837.1,1.48151]
[1754576347681,1.9614,3837.2,3837.1,2.13731]
[1754576347882,1.9614,3837.2,3837.1,0.81091]
[1754576348084,1.9614,3837.2,3837.1,0.2898]
[1754576348281,1.34041,3837.2,3837.0,0.52112]
[1754576348480,1.9614,3837.1,3837.0,0.52112]
[1754576348680,1.9614,3837.1,3837.0,0.81092]
[1754576348880,0.667,3837.1,3837.0,2.13732]
[1754576349278,0.667,3837.1,3837.0,2.52432]
[1754576349478,0.3877,3837.1,3837.0,2.52432]
[1754576349673,0.3877,3837.4,3837.3,2.0032]
[1754576349873,1.1688,3837.8,3837.2,0.4114]
[1754576350075,1.1688,3837.8,3836.7,1.30289]
[1754576350076,1.1688,3837.3,3836.7,0.4114]
[1754576350272,1.1688,3837.3,3836.6,1.30294]
[1754576350273,0.2793,3837.0,3836.9,0.52113]
[1754576350475,1.9614,3837.0,3836.9,1.75793]
[1754576350676,0.3877,3837.0,3836.9,2.52433]
[1754576351083,0.52117,3836.7,3835.8,1.30323]
[1754576351277,0.9322,3836.4,3836.3,1.2048]
[1754576351481,0.3877,3836.4,3836.3,2.52442]
[1754576351882,0.667,3836.4,3836.3,2.13742]
[1754576352076,1.9614,3836.4,3836.3,0.9604]
[1754576352279,0.667,3836.4,3836.3,1.6162]
[1754576352479,0.69883996,3836.8,3836.7,1.3398]
[1754576352782,0.52117,3836.7,3836.0,1.1778]
[1754576352980,0.5445,3836.4,3836.3,1.34661]
[1754576353180,0.9322,3836.4,3836.3,1.73361]
[1754576353383,1.36992422,3836.4,3836.3,1.34661]
[1754576353583,1.36992422,3836.4,3836.3,2.13741]
[1754576353991,1.37071799,3836.4,3836.3,2.52441]
[1754576354483,0.70371799,3836.6,3836.5,1.34659]
[1754576354690,0.70371799,3836.6,3836.5,2.52439]
[1754576354884,0.70371799,3836.9,3836.8,0.52115]
[1754576355184,0.70371799,3836.9,3836.8,2.52435]
[1754576355979,1.39853122,3837.9,3837.2,0.5211]
[1754576355980,0.70371799,3837.3,3837.2,0.5211]
[1754576356286,0.70371799,3837.6,3837.5,1.34646]
[1754576356486,0.70371799,3837.6,3837.5,2.52426]
[1754576357085,0.2224053,3838.2,3838.1,1.31178]
[1754576357381,0.4049,3839.0,3838.8,0.52087]
[1754576357684,0.87135,3839.1,3838.8,0.52087]
[1754576357685,0.3877,3838.9,3838.8,1.31167]
[1754576358790,0.7926,3838.9,3838.8,1.31167]
[1754576359188,0.3877,3838.8,3838.7,0.52089]
[1754576359490,1.1431,3838.7,3838.6,0.52091]
[1754576360893,1.1431,3838.6,3838.5,0.93232]
[1754576361081,1.39853122,3839.5,3838.7,0.52089]
[1754576361286,2.92287652,3839.6,3838.7,0.52089]
[1754576361689,0.52087,3839.0,3838.7,0.52089]
[1754576361886,1.27628,3838.8,3838.5,0.52091]
[1754576362087,1.1431,3838.7,3838.5,0.52091]
[1754576362288,1.1431,3838.8,3838.7,0.52088]
[1754576362788,0.3877,3838.8,3838.7,1.69868]
[1754576362991,0.7926,3838.8,3838.7,1.31168]
[1754576363290,1.1431,3838.8,3838.7,0.93228]
[1754576363489,1.1431,3838.8,3838.7,1.31168]
[1754576364488,1.1431,3838.8,3838.7,0.7908]
[1754576364686,1.1431,3839.0,3838.6,0.5209]
[1754576364884,1.1431,3838.8,3838.7,1.31169]
[1754576365089,0.3505,3839.1,3838.9,0.52087]
[1754576365289,0.7554,3839.3,3838.7,0.387]
[1754576365594,0.7554,3839.3,3839.2,1.31163]
[1754576365795,1.2999,3839.3,3839.2,1.6162]
[1754576366093,1.6876,3839.3,3839.2,1.6162]
[1754576366796,1.9624,3839.3,3839.2,1.6162]
[1754576366991,1.6876,3839.7,3839.6,2.13697]
[1754576367190,0.9322,3839.7,3839.6,2.13697]
[1754576367691,1.6876,3839.7,3839.6,2.13697]
[1754576367890,0.9322,3839.7,3839.6,2.13697]
[1754576368091,0.9322,3839.7,3839.6,2.52397]
[1754576368494,1.3371,3840.0,3839.9,2.13693]
[1754576368691,1.6876,3840.0,3839.9,2.13693]
[1754576368895,0.9322,3840.0,3839.9,2.13693]
[1754576369197,0.9322,3840.0,3839.9,2.52393]
[1754576369695,0.9493,3840.4,3840.3,2.15348]
[1754576369896,0.2748,3840.4,3840.3,2.56678]
[1754576370293,0.6513,3840.4,3840.3,2.56678]
[1754576370491,1.9427,3840.4,3840.2,0.52068]
[1754576370695,1.9427,3839.9,3839.8,0.52075]
[1754576370989,1.1131,3840.6,3840.5,0.94625]
[1754576371396,1.1131,3840.6,3840.5,1.32265]
[1754576372586,0.3765,3840.6,3840.5,1.32265]
[1754576373493,1.1131,3840.6,3840.5,1.32265]
[1754576374095,0.3765,3840.6,3840.5,1.32265]
[1754576374302,0.3765,3840.6,3840.5,1.73595]
[1754576374497,0.3868,3840.9,3840.8,0.52061]
[1754576374693,0.7633,3840.9,3840.8,1.32261]
[1754576375092,1.1131,3840.9,3840.8,1.32261]
[1754576375296,1.1131,3840.9,3840.8,0.4256]
[1754576375600,1.0,3841.0,3840.9,0.5206]
[1754576375801,0.8296,3840.8,3840.7,0.52062]
[1754576376097,1.9427,3840.8,3840.7,0.52062]
[1754576376402,1.9427,3840.5,3840.4,0.7229]
[1754576376597,1.9427,3840.5,3840.4,0.2973]
[1754576376798,0.8296,3840.3,3840.2,0.52068]
[1754576377103,1.9427,3840.2,3840.0,0.89711]
[1754576377301,1.9427,3840.1,3840.0,2.15351]
[1754576378699,1.9427,3840.1,3840.0,0.81801]
[1754576378907,1.9427,3840.1,3840.0,0.52071]
[1754576379506,1.9427,3840.1,3840.0,0.81801]
[1754576380194,1.9427,3840.1,3840.0,1.51481]
[1754576381002,1.9427,3840.1,3840.0,2.15351]
[1754576381611,0.6513,3840.1,3840.0,2.56681]
[1754576381812,0.9209,3840.1,3840.0,2.56681]
[1754576382112,1.3077,3840.1,3840.0,2.15351]
[1754576382314,1.9427,3840.1,3840.0,2.15351]
[1754576382502,1.9427,3840.1,3840.0,1.51481]
[1754576382902,1.9427,3840.1,3840.0,0.52071]
[1754576383112,0.8296,3840.1,3839.9,0.52073]
[1754576383314,1.9427,3840.0,3839.9,0.52073]
[1754576383515,1.9427,3840.0,3839.9,1.77713]
[1754576383703,1.9427,3840.0,3839.9,2.15353]
[1754576385314,1.9427,3840.0,3839.9,1.6328]
[1754576386214,1.9427,3840.0,3839.9,1.2564]
[1754576386609,1.9427,3840.0,3839.9,1.6328]
[1754576387207,1.3077,3839.5,3839.4,0.4256]
[1754576387413,1.9427,3839.5,3839.4,0.7229]
[1754576387614,1.3504,3839.5,3839.2,0.52082]
[1754576387811,1.9427,3839.2,3839.1,0.2973]
[1754576388316,1.9427,3838.9,3838.8,2.15368]
[1754576388620,1.9427,3838.9,3838.8,1.2564]
[1754576388811,1.9427,3838.9,3838.5,0.3764]
[1754576388812,0.2696,3838.9,3838.5,0.3764]
[1754576389010,1.6575,3838.3,3838.2,2.15375]
[1754576389219,1.9427,3838.3,3838.2,1.6328]
[1754576389913,0.6513,3838.3,3838.2,2.0461]
[1754576390616,0.9209,3838.3,3838.2,3.2982]
[1754576390816,0.2748,3838.4,3838.3,2.15375]
[1754576391117,0.52088,3838.8,3838.3,2.15375]
[1754576391322,1.2061,3838.5,3838.4,1.72814]
[1754576391620,1.9427,3838.5,3838.4,1.2072]
[1754576391823,1.9427,3838.5,3838.4,1.6328]
[1754576394424,0.8296,3838.5,3838.3,0.52094]
[1754576394620,1.9427,3838.4,3838.3,0.9852]
[1754576394825,2.46365,3838.3,3838.2,1.2521]
[1754576397524,1.9427,3838.3,3838.2,1.8206]
[1754576397720,1.9427,3838.3,3838.2,1.2521]
[1754576400228,1.3077,3838.3,3838.2,2.0505]
[1754576400422,0.9198,3838.6,3838.5,1.03081]
[1754576400625,1.3091,3838.6,3838.5,1.6072]
[1754576400825,1.658,3838.6,3838.5,1.6072]
[1754576401028,0.6491,3838.6,3838.5,2.0059]
[1754576401628,2.7635645,3839.4,3839.3,0.9749]
[1754576401831,1.32575,3839.0,3838.9,1.49576]
[1754576402030,2.45405,3839.0,3838.9,1.88116]
[1754576402327,1.3091,3839.0,3838.9,2.12806]
[1754576402628,1.9332,3839.0,3838.9,2.12806]
[1754576403125,0.93100232,3839.9,3838.9,0.8242]
[1754576403323,0.6491,3839.6,3839.5,1.6072]
[1754576403526,0.6491,3839.9,3839.8,2.12794]
[1754576403730,0.9586645,3840.1,3840.0,2.12792]
[1754576403926,0.259,3840.1,3840.0,2.52662]
[1754576404128,0.5297,3840.1,3840.0,2.12792]
[1754576404331,0.3901,3840.4,3840.3,2.52658]
[1754576404529,1.0,3841.0,3840.9,0.5206]
[1754576404725,1.3901,3841.0,3840.9,1.3448]
[1754576405231,1.0,3841.0,3840.9,1.7435]
[1754576407027,1.3901,3841.0,3840.9,0.8242]
[1754576407234,1.3901,3841.0,3840.9,1.2229]
[1754576407532,1.0,3841.0,3840.9,1.2229]
[1754576408034,0.3901,3840.9,3840.8,0.8242]
[1754576408233,1.1283,3840.9,3840.8,0.4388]
[1754576408828,1.1283,3840.5,3840.4,0.4388]
[1754576409029,0.3901,3840.5,3840.3,0.52068]
[1754576409233,0.3901,3840.5,3840.4,0.8242]
[1754576409435,0.3893,3840.9,3840.4,0.8242]
[1754576409629,0.3901,3840.6,3840.5,0.52065]
[1754576409831,0.3901,3840.6,3840.5,0.95945]
[1754576410032,0.7794,3840.6,3840.5,1.34485]
[1754576410232,0.3901,3840.6,3840.5,1.34485]
[1754576410635,0.3901,3840.8,3840.5,0.3987]
[1754576410835,0.3901,3840.8,3840.6,0.52063]
[1754576411030,0.3901,3840.7,3840.6,0.52063]
[1754576411230,0.3901,3840.9,3840.6,0.7841]
[1754576411440,1.3495,3841.0,3840.6,0.3987]
[1754576411628,0.3901,3840.8,3840.6,0.91933]
[1754576411834,0.3901,3840.7,3840.6,0.52063]
[1754576412139,0.3901,3840.7,3840.6,1.34483]